[Event "Titled Tuesday Blitz November 01 Early 2022"]
[White "Ovchinnikov, Vsevolod"]
[Black "Rakhmanov, Aleksandr"]
[WhiteFideId "24176842"]
[BlackFideId "4173708"]
[WhiteElo "2376"]
[BlackElo "2530"]
[Result "1-0"]
[Round "05"]
[TimeControl "180+1"]
[Date "2022.11.02"]
[WhiteClock "0:00:08"]
[BlackClock "0:00:03"]

1. Nf3 {[%clk 0:03:00]}  d5 {[%clk 0:02:58]} 2. c4 {[%clk 0:03:00]}  d4 {[%clk 0:02:56]} 3. e3 {[%clk 0:03:00]}  Nc6 {[%clk 0:02:51]} 4. b4 {[%clk 0:02:57]}  dxe3 {[%clk 0:02:48]} 5. fxe3 {[%clk 0:02:58]}  Nxb4 {[%clk 0:02:45]} 6. d4 {[%clk 0:02:56]}  e6 {[%clk 0:02:37]} 7. Nc3 {[%clk 0:02:54]}  Nf6 {[%clk 0:02:33]} 8. a3 {[%clk 0:02:46]}  Nc6 {[%clk 0:02:32]} 9. e4 {[%clk 0:02:42]}  Be7 {[%clk 0:01:46]} 10. e5 {[%clk 0:01:53]}  Nd7 {[%clk 0:01:42]} 11. Bd3 {[%clk 0:01:50]}  Nxd4 {[%clk 0:01:33]} 12. Nxd4 {[%clk 0:01:47]}  Nxe5 {[%clk 0:01:32]} 13. Be2 {[%clk 0:01:35]}  Bh4+ {[%clk 0:01:07]} 14. g3 {[%clk 0:01:33]}  Bf6 {[%clk 0:01:07]} 15. Be3 {[%clk 0:01:26]}  O-O {[%clk 0:00:55]} 16. Ne4 {[%clk 0:01:22]}  Be7 {[%clk 0:00:53]} 17. O-O {[%clk 0:01:17]}  f5 {[%clk 0:00:42]} 18. Nf2 {[%clk 0:01:14]}  c5 {[%clk 0:00:38]} 19. Nb5 {[%clk 0:01:07]}  b6 {[%clk 0:00:30]} 20. Bf4 {[%clk 0:00:49]}  Bf6 {[%clk 0:00:30]} 21. Qxd8 {[%clk 0:00:47]}  Rxd8 {[%clk 0:00:29]} 22. Rad1 {[%clk 0:00:47]}  Bd7 {[%clk 0:00:18]} 23. h4 {[%clk 0:00:23]}  Kf7 {[%clk 0:00:13]} 24. Ne4 {[%clk 0:00:08]}  Bxb5 {[%clk 0:00:06]} 25. cxb5 {[%clk 0:00:09]}  Rxd1 {[%clk 0:00:04]} 26. Bxd1 {[%clk 0:00:10]}  Ke7 {[%clk 0:00:03]} 27. Nxf6 {[%clk 0:00:10]}  gxf6 {[%clk 0:00:04]} 28. Re1 {[%clk 0:00:10]}  Rd8 {[%clk 0:00:04]} 29. Be2 {[%clk 0:00:09]}  Rd4 {[%clk 0:00:04]} 30. Be3 {[%clk 0:00:09]}  Ra4 {[%clk 0:00:03]} 31. Bc1 {[%clk 0:00:10]}  c4 {[%clk 0:00:03]} 32. Kf2 {[%clk 0:00:10]}  Nd3+ {[%clk 0:00:03]} 33. Bxd3 {[%clk 0:00:10]}  cxd3 {[%clk 0:00:04]} 34. Rd1 {[%clk 0:00:11]}  Rc4 {[%clk 0:00:04]} 35. Be3 {[%clk 0:00:10]}  Rc2+ {[%clk 0:00:04]} 36. Rd2 {[%clk 0:00:10]}  Rc3 {[%clk 0:00:05]} 37. a4 {[%clk 0:00:10]}  Rb3 {[%clk 0:00:05]} 38. Kf3 {[%clk 0:00:11]}  e5 {[%clk 0:00:05]} 39. g4 {[%clk 0:00:11]}  Ke6 {[%clk 0:00:06]} 40. gxf5+ {[%clk 0:00:11]}  Kxf5 {[%clk 0:00:07]} 41. h5 {[%clk 0:00:11]}  e4+ {[%clk 0:00:07]} 42. Kg3 {[%clk 0:00:12]}  Ke5 {[%clk 0:00:08]} 43. h6 {[%clk 0:00:13]}  f5 {[%clk 0:00:08]} 44. Rd1 {[%clk 0:00:11]}  Ra3 {[%clk 0:00:08]} 45. Bd2 {[%clk 0:00:09]}  Rxa4 {[%clk 0:00:09]} 46. Rc1 {[%clk 0:00:08]}  Ra2 {[%clk 0:00:08]} 47. Bf4+ {[%clk 0:00:08]}  Kd5 {[%clk 0:00:08]} 48. Rc7 {[%clk 0:00:09]}  Rb2 {[%clk 0:00:07]} 49. Rxh7 {[%clk 0:00:08]}  e3 {[%clk 0:00:06]} 50. Bxe3 {[%clk 0:00:08]}  Ke4 {[%clk 0:00:06]} 51. Bf4 {[%clk 0:00:09]}  d2 {[%clk 0:00:05]} 52. Re7+ {[%clk 0:00:07]}  Kd3 {[%clk 0:00:05]} 53. Rd7+ {[%clk 0:00:07]}  Kc4 {[%clk 0:00:04]} 54. Rxd2 {[%clk 0:00:07]}  Rb3+ {[%clk 0:00:03]} 55. Kh4 {[%clk 0:00:07]}  Rb1 {[%clk 0:00:03]} 56. Rh2 {[%clk 0:00:06]}  Rf1 {[%clk 0:00:02]} 57. Kg5 {[%clk 0:00:06]}  Rg1+ {[%clk 0:00:03]} 58. Kxf5 {[%clk 0:00:07]}  Rg8 {[%clk 0:00:03]} 59. h7 {[%clk 0:00:08]}  Rh8 {[%clk 0:00:03]} 60. Be5 {[%clk 0:00:08]} 1-0


[Site "https://www.chess.com"]

[Event "Titled Tuesday Blitz November 01 Early 2022"]
[White "Ozen, Bahadir"]
[Black "Mladenovic, Stefan"]
[WhiteFideId "6337058"]
[BlackFideId "942227"]
[WhiteElo "2503"]
[BlackElo "2337"]
[Result "1-0"]
[Round "05"]
[TimeControl "180+1"]
[Date "2022.11.02"]
[WhiteClock "0:02:26"]
[BlackClock "0:01:40"]

1. g3 {[%clk 0:03:00]}  Nf6 {[%clk 0:02:58]} 2. Bg2 {[%clk 0:03:01]}  e6 {[%clk 0:02:58]} 3. Nf3 {[%clk 0:03:00]}  d5 {[%clk 0:02:59]} 4. O-O {[%clk 0:03:01]}  Be7 {[%clk 0:03:00]} 5. d3 {[%clk 0:03:01]}  O-O {[%clk 0:03:01]} 6. Nbd2 {[%clk 0:03:01]}  c5 {[%clk 0:03:01]} 7. e4 {[%clk 0:03:01]}  d4 {[%clk 0:03:01]} 8. a4 {[%clk 0:02:54]}  Nc6 {[%clk 0:03:01]} 9. Nc4 {[%clk 0:02:55]}  Nd7 {[%clk 0:03:00]} 10. Ne1 {[%clk 0:02:52]}  e5 {[%clk 0:02:48]} 11. f4 {[%clk 0:02:51]}  b6 {[%clk 0:02:48]} 12. Nf3 {[%clk 0:02:50]}  f6 {[%clk 0:02:47]} 13. Bh3 {[%clk 0:02:50]}  Qc7 {[%clk 0:02:43]} 14. Be6+ {[%clk 0:02:49]}  Kh8 {[%clk 0:02:43]} 15. Nh4 {[%clk 0:02:47]}  Nd8 {[%clk 0:02:32]} 16. Bd5 {[%clk 0:02:36]}  Bb7 {[%clk 0:02:30]} 17. Qh5 {[%clk 0:02:27]}  g6 {[%clk 0:01:39]} 18. Nxg6+ {[%clk 0:02:27]}  Kg7 {[%clk 0:01:40]} 19. Nxe7 {[%clk 0:02:26]} 1-0


[Site "https://www.chess.com"]

[Event "Titled Tuesday Blitz November 01 Early 2022"]
[White "Pappelis, Dimitrios"]
[Black "Kanyamarala, Trisha"]
[WhiteFideId "4215281"]
[BlackFideId "45004722"]
[WhiteElo "2104"]
[BlackElo "2099"]
[Result "0-1"]
[Round "05"]
[TimeControl "180+1"]
[Date "2022.11.02"]
[WhiteClock "0:01:59"]
[BlackClock "0:01:31"]

1. e4 {[%clk 0:03:00]}  c5 {[%clk 0:02:54]} 2. Nf3 {[%clk 0:03:00]}  d6 {[%clk 0:02:53]} 3. d4 {[%clk 0:03:00]}  cxd4 {[%clk 0:02:50]} 4. Qxd4 {[%clk 0:03:01]}  Nc6 {[%clk 0:02:48]} 5. Bb5 {[%clk 0:03:01]}  Bd7 {[%clk 0:02:42]} 6. Bxc6 {[%clk 0:03:01]}  bxc6 {[%clk 0:02:42]} 7. Nc3 {[%clk 0:03:02]}  e5 {[%clk 0:02:42]} 8. Qd3 {[%clk 0:03:00]}  h6 {[%clk 0:02:40]} 9. O-O {[%clk 0:02:58]}  Nf6 {[%clk 0:02:39]} 10. b3 {[%clk 0:02:54]}  Be7 {[%clk 0:02:36]} 11. a4 {[%clk 0:02:54]}  a5 {[%clk 0:02:31]} 12. Ba3 {[%clk 0:02:54]}  Bg4 {[%clk 0:02:18]} 13. h3 {[%clk 0:02:49]}  Bxf3 {[%clk 0:02:08]} 14. Qxf3 {[%clk 0:02:49]}  O-O {[%clk 0:02:08]} 15. Rfd1 {[%clk 0:02:48]}  Qc7 {[%clk 0:02:08]} 16. Rd3 {[%clk 0:02:47]}  Rfe8 {[%clk 0:02:02]} 17. Rad1 {[%clk 0:02:46]}  d5 {[%clk 0:01:44]} 18. Bxe7 {[%clk 0:02:42]}  Qxe7 {[%clk 0:01:39]} 19. exd5 {[%clk 0:02:22]}  e4 {[%clk 0:01:38]} 20. Nxe4 {[%clk 0:02:23]}  Qxe4 {[%clk 0:01:33]} 21. Qxe4 {[%clk 0:02:13]}  Nxe4 {[%clk 0:01:34]} 22. dxc6 {[%clk 0:02:14]}  Rac8 {[%clk 0:01:33]} 23. Rd5 {[%clk 0:01:59]}  Nc3 {[%clk 0:01:31]} 0-1


[Site "https://www.chess.com"]

[Event "Titled Tuesday Blitz November 01 Early 2022"]
[White "Parkhov, Yair"]
[Black "Svane, Rasmus"]
[WhiteFideId "2813408"]
[BlackFideId "4657101"]
[WhiteElo "2384"]
[BlackElo "2674"]
[Result "0-1"]
[Round "05"]
[TimeControl "180+1"]
[Date "2022.11.02"]
[WhiteClock "0:00:02"]
[BlackClock "0:00:22"]

1. d4 {[%clk 0:03:00]}  Nf6 {[%clk 0:02:57]} 2. c4 {[%clk 0:03:01]}  e6 {[%clk 0:02:54]} 3. Nf3 {[%clk 0:03:00]}  d5 {[%clk 0:02:54]} 4. g3 {[%clk 0:03:00]}  Bb4+ {[%clk 0:02:51]} 5. Nbd2 {[%clk 0:02:58]}  dxc4 {[%clk 0:02:51]} 6. Bg2 {[%clk 0:02:54]}  b5 {[%clk 0:02:50]} 7. O-O {[%clk 0:02:46]}  a5 {[%clk 0:02:50]} 8. a3 {[%clk 0:02:45]}  Be7 {[%clk 0:02:50]} 9. b3 {[%clk 0:02:41]}  cxb3 {[%clk 0:02:47]} 10. Qxb3 {[%clk 0:02:35]}  c6 {[%clk 0:02:46]} 11. Bb2 {[%clk 0:02:27]}  O-O {[%clk 0:02:44]} 12. Ne5 {[%clk 0:02:23]}  Bb7 {[%clk 0:02:43]} 13. Rac1 {[%clk 0:02:17]}  Ra6 {[%clk 0:02:39]} 14. Qc2 {[%clk 0:02:00]}  Nd5 {[%clk 0:02:35]} 15. Nb3 {[%clk 0:01:48]}  Nd7 {[%clk 0:02:35]} 16. Nxd7 {[%clk 0:01:39]}  Qxd7 {[%clk 0:02:35]} 17. Nc5 {[%clk 0:01:40]}  Bxc5 {[%clk 0:02:35]} 18. dxc5 {[%clk 0:01:40]}  Qe7 {[%clk 0:02:30]} 19. Rfd1 {[%clk 0:01:35]}  Raa8 {[%clk 0:02:28]} 20. e4 {[%clk 0:01:33]}  Nf6 {[%clk 0:02:28]} 21. Rd6 {[%clk 0:01:31]}  Ne8 {[%clk 0:02:28]} 22. Rd3 {[%clk 0:01:26]}  Rd8 {[%clk 0:02:19]} 23. Rcd1 {[%clk 0:01:26]}  Rxd3 {[%clk 0:02:18]} 24. Rxd3 {[%clk 0:01:26]}  Nf6 {[%clk 0:02:06]} 25. Rd6 {[%clk 0:01:23]}  Rc8 {[%clk 0:01:56]} 26. Qc3 {[%clk 0:01:13]}  a4 {[%clk 0:01:53]} 27. Qd2 {[%clk 0:01:10]}  h6 {[%clk 0:01:52]} 28. Bc3 {[%clk 0:01:03]}  Ba8 {[%clk 0:01:42]} 29. Qd4 {[%clk 0:00:46]}  Re8 {[%clk 0:01:38]} 30. f4 {[%clk 0:00:42]}  Rc8 {[%clk 0:01:31]} 31. Bf3 {[%clk 0:00:40]}  Qf8 {[%clk 0:01:10]} 32. Kg2 {[%clk 0:00:26]}  Ne8 {[%clk 0:01:09]} 33. Rd7 {[%clk 0:00:25]}  Nf6 {[%clk 0:01:09]} 34. Rd6 {[%clk 0:00:20]}  Ne8 {[%clk 0:01:08]} 35. Rd7 {[%clk 0:00:07]}  b4 {[%clk 0:01:09]} 36. axb4 {[%clk 0:00:05]}  Nf6 {[%clk 0:01:08]} 37. Rd6 {[%clk 0:00:05]}  Ne8 {[%clk 0:01:08]} 38. Rd7 {[%clk 0:00:05]}  Nc7 {[%clk 0:01:01]} 39. Qd3 {[%clk 0:00:03]}  Nb5 {[%clk 0:01:01]} 40. Be5 {[%clk 0:00:03]}  f6 {[%clk 0:01:00]} 41. Bd6 {[%clk 0:00:03]}  Nxd6 {[%clk 0:00:58]} 42. cxd6 {[%clk 0:00:03]}  c5 {[%clk 0:00:55]} 43. Qc4 {[%clk 0:00:03]}  cxb4 {[%clk 0:00:44]} 44. Qxe6+ {[%clk 0:00:04]}  Kh8 {[%clk 0:00:45]} 45. Rf7 {[%clk 0:00:05]}  Qg8 {[%clk 0:00:45]} 46. d7 {[%clk 0:00:04]}  Rd8 {[%clk 0:00:44]} 47. Bg4 {[%clk 0:00:04]}  b3 {[%clk 0:00:43]} 48. Bf5 {[%clk 0:00:04]}  b2 {[%clk 0:00:42]} 49. Re7 {[%clk 0:00:03]}  b1=Q {[%clk 0:00:37]} 50. Re8 {[%clk 0:00:04]}  Qb3 {[%clk 0:00:25]} 51. Rxd8 {[%clk 0:00:02]}  Qxe6 {[%clk 0:00:21]} 52. Rxg8+ {[%clk 0:00:01]}  Qxg8 {[%clk 0:00:22]} 53. Bg6 {[%clk 0:00:01]}  Qd8 {[%clk 0:00:22]} 54. Be8 {[%clk 0:00:02]} 0-1


[Site "https://www.chess.com"]

[Event "Titled Tuesday Blitz November 01 Early 2022"]
[White "Postnikov, Daniil"]
[Black "Fernandez De La Vara, Arnaldo"]
[WhiteFideId "4166329"]
[BlackFideId "3518388"]
[WhiteElo "2261"]
[BlackElo "2387"]
[Result "0-1"]
[Round "05"]
[TimeControl "180+1"]
[Date "2022.11.02"]
[WhiteClock "0:00:11"]
[BlackClock "0:00:04"]

1. d4 {[%clk 0:03:00]}  c5 {[%clk 0:03:00]} 2. d5 {[%clk 0:02:59]}  Nf6 {[%clk 0:03:00]} 3. Nc3 {[%clk 0:02:58]}  d6 {[%clk 0:03:00]} 4. e4 {[%clk 0:02:58]}  a6 {[%clk 0:03:00]} 5. a4 {[%clk 0:02:56]}  g6 {[%clk 0:03:01]} 6. Nf3 {[%clk 0:02:55]}  Bg4 {[%clk 0:03:01]} 7. Be2 {[%clk 0:02:55]}  Bxf3 {[%clk 0:03:01]} 8. Bxf3 {[%clk 0:02:54]}  Nbd7 {[%clk 0:03:02]} 9. Bf4 {[%clk 0:02:54]}  Bg7 {[%clk 0:03:02]} 10. O-O {[%clk 0:02:54]}  O-O {[%clk 0:03:02]} 11. Re1 {[%clk 0:02:51]}  Rb8 {[%clk 0:03:00]} 12. a5 {[%clk 0:02:45]}  Ne8 {[%clk 0:03:00]} 13. Be2 {[%clk 0:02:42]}  Nc7 {[%clk 0:03:00]} 14. Bc4 {[%clk 0:02:40]}  b5 {[%clk 0:02:49]} 15. axb6 {[%clk 0:02:39]}  Rxb6 {[%clk 0:02:50]} 16. Qc1 {[%clk 0:02:12]}  Qb8 {[%clk 0:02:41]} 17. Ra2 {[%clk 0:02:13]}  Rb4 {[%clk 0:01:55]} 18. Bf1 {[%clk 0:02:10]}  Qb7 {[%clk 0:01:52]} 19. h4 {[%clk 0:01:59]}  Rb8 {[%clk 0:01:51]} 20. Nd1 {[%clk 0:01:51]}  Bxb2 {[%clk 0:01:31]} 21. Nxb2 {[%clk 0:01:52]}  Rxb2 {[%clk 0:01:32]} 22. Ra3 {[%clk 0:01:39]}  Rb1 {[%clk 0:01:21]} 23. Qd2 {[%clk 0:01:29]}  Rxe1 {[%clk 0:01:17]} 24. Qxe1 {[%clk 0:01:30]}  Qb1 {[%clk 0:01:16]} 25. Qxb1 {[%clk 0:01:24]}  Rxb1 {[%clk 0:01:17]} 26. g3 {[%clk 0:01:24]}  f5 {[%clk 0:01:02]} 27. exf5 {[%clk 0:01:16]}  Nxd5 {[%clk 0:00:52]} 28. fxg6 {[%clk 0:01:14]}  Nxf4 {[%clk 0:00:44]} 29. gxh7+ {[%clk 0:01:14]}  Kxh7 {[%clk 0:00:45]} 30. gxf4 {[%clk 0:01:15]}  Nf6 {[%clk 0:00:21]} 31. Rxa6 {[%clk 0:01:12]}  Kg6 {[%clk 0:00:16]} 32. Kg2 {[%clk 0:01:08]}  Nd5 {[%clk 0:00:13]} 33. Bd3+ {[%clk 0:01:08]}  Kf6 {[%clk 0:00:12]} 34. Kf3 {[%clk 0:01:04]}  Rh1 {[%clk 0:00:12]} 35. Kg3 {[%clk 0:01:00]}  Rg1+ {[%clk 0:00:11]} 36. Kf3 {[%clk 0:01:00]}  Nb4 {[%clk 0:00:07]} 37. Ra3 {[%clk 0:00:55]}  Rh1 {[%clk 0:00:06]} 38. Kg3 {[%clk 0:00:51]}  d5 {[%clk 0:00:07]} 39. Be2 {[%clk 0:00:46]}  Nxc2 {[%clk 0:00:05]} 40. Ra5 {[%clk 0:00:46]}  Nd4 {[%clk 0:00:05]} 41. Bg4 {[%clk 0:00:43]}  Rg1+ {[%clk 0:00:04]} 42. Kh3 {[%clk 0:00:41]}  Rc1 {[%clk 0:00:05]} 43. h5 {[%clk 0:00:39]}  e6 {[%clk 0:00:04]} 44. Ra6 {[%clk 0:00:37]}  c4 {[%clk 0:00:04]} 45. h6 {[%clk 0:00:36]}  Rh1+ {[%clk 0:00:04]} 46. Kg3 {[%clk 0:00:33]}  Rxh6 {[%clk 0:00:05]} 47. Kg2 {[%clk 0:00:19]}  Rh8 {[%clk 0:00:04]} 48. Ra7 {[%clk 0:00:15]}  Rg8 {[%clk 0:00:05]} 49. f3 {[%clk 0:00:15]}  Ne2 {[%clk 0:00:04]} 50. f5 {[%clk 0:00:14]}  exf5 {[%clk 0:00:03]} 51. Kf2 {[%clk 0:00:14]}  fxg4 {[%clk 0:00:03]} 52. Kxe2 {[%clk 0:00:15]}  gxf3+ {[%clk 0:00:03]} 53. Kxf3 {[%clk 0:00:16]}  Ke5 {[%clk 0:00:04]} 54. Ke2 {[%clk 0:00:17]}  Rg2+ {[%clk 0:00:04]} 55. Kf3 {[%clk 0:00:15]}  Rb2 {[%clk 0:00:04]} 56. Re7+ {[%clk 0:00:15]}  Kd4 {[%clk 0:00:04]} 57. Rd7 {[%clk 0:00:15]}  Rb3+ {[%clk 0:00:05]} 58. Ke2 {[%clk 0:00:15]}  Rd3 {[%clk 0:00:04]} 59. Rd8 {[%clk 0:00:13]}  Re3+ {[%clk 0:00:04]} 60. Kd2 {[%clk 0:00:12]}  c3+ {[%clk 0:00:05]} 61. Kc2 {[%clk 0:00:13]}  Re2+ {[%clk 0:00:06]} 62. Kd1 {[%clk 0:00:14]}  Rd2+ {[%clk 0:00:05]} 63. Kc1 {[%clk 0:00:15]}  Kc4 {[%clk 0:00:05]} 64. Rc8+ {[%clk 0:00:15]}  Kd3 {[%clk 0:00:06]} 65. Rd8 {[%clk 0:00:16]}  d4 {[%clk 0:00:06]} 66. Rh8 {[%clk 0:00:14]}  Re2 {[%clk 0:00:06]} 67. Rh1 {[%clk 0:00:11]}  Kc4 {[%clk 0:00:06]} 68. Rh8 {[%clk 0:00:11]}  Re1+ {[%clk 0:00:04]} 0-1


[Site "https://www.chess.com"]

[Event "Titled Tuesday Blitz November 01 Early 2022"]
[White "Reprintsev, Alexander"]
[Black "Izuzquiza Gonzalez, Javier"]
[WhiteFideId "14100541"]
[BlackFideId "3101029"]
[WhiteElo "2230"]
[BlackElo "2034"]
[Result "0-1"]
[Round "05"]
[TimeControl "180+1"]
[Date "2022.11.02"]
[WhiteClock "0:00:01"]
[BlackClock "0:00:15"]

1. e4 {[%clk 0:02:19]}  c5 {[%clk 0:02:59]} 2. b3 {[%clk 0:02:17]}  d5 {[%clk 0:02:58]} 3. exd5 {[%clk 0:02:16]}  Qxd5 {[%clk 0:02:59]} 4. Nc3 {[%clk 0:02:15]}  Qd6 {[%clk 0:02:57]} 5. Ne4 {[%clk 0:02:07]}  Qc7 {[%clk 0:02:56]} 6. Bb5+ {[%clk 0:02:01]}  Bd7 {[%clk 0:02:55]} 7. Qe2 {[%clk 0:01:58]}  a6 {[%clk 0:02:54]} 8. Bxd7+ {[%clk 0:01:57]}  Nxd7 {[%clk 0:02:55]} 9. Bb2 {[%clk 0:01:56]}  Qc6 {[%clk 0:02:37]} 10. Nf3 {[%clk 0:01:52]}  Ngf6 {[%clk 0:02:36]} 11. Nxf6+ {[%clk 0:01:49]}  Nxf6 {[%clk 0:02:37]} 12. O-O {[%clk 0:01:43]}  g6 {[%clk 0:02:31]} 13. Rfe1 {[%clk 0:00:20]}  Qd6 {[%clk 0:02:31]} 14. Be5 {[%clk 0:00:19]}  Qc6 {[%clk 0:02:19]} 15. d4 {[%clk 0:00:18]}  Bg7 {[%clk 0:01:51]} 16. c4 {[%clk 0:00:14]}  cxd4 {[%clk 0:01:33]} 17. Nxd4 {[%clk 0:00:13]}  Qb6 {[%clk 0:01:22]} 18. Rad1 {[%clk 0:00:11]}  O-O {[%clk 0:01:19]} 19. Nf3 {[%clk 0:00:09]}  Rad8 {[%clk 0:01:13]} 20. Bd4 {[%clk 0:00:09]}  Qa5 {[%clk 0:01:03]} 21. Qxe7 {[%clk 0:00:09]}  Rfe8 {[%clk 0:00:52]} 22. Bxf6 {[%clk 0:00:09]}  Rxe7 {[%clk 0:00:50]} 23. Bxe7 {[%clk 0:00:09]}  Rxd1 {[%clk 0:00:48]} 24. Rxd1 {[%clk 0:00:09]}  Bc3 {[%clk 0:00:40]} 25. a3 {[%clk 0:00:08]}  Kg7 {[%clk 0:00:32]} 26. h3 {[%clk 0:00:08]}  Qf5 {[%clk 0:00:30]} 27. b4 {[%clk 0:00:06]}  Bf6 {[%clk 0:00:20]} 28. Bc5 {[%clk 0:00:06]}  Qc2 {[%clk 0:00:20]} 29. Rd7 {[%clk 0:00:04]}  Qxc4 {[%clk 0:00:18]} 30. Rxb7 {[%clk 0:00:04]}  Qc1+ {[%clk 0:00:18]} 31. Kh2 {[%clk 0:00:04]}  Qxa3 {[%clk 0:00:19]} 32. Rb8 {[%clk 0:00:03]}  h5 {[%clk 0:00:15]} 33. Bf8+ {[%clk 0:00:02]}  Kh7 {[%clk 0:00:15]} 34. Bc5 {[%clk 0:00:01]}  Qb2 {[%clk 0:00:15]} 35. Rb7 {[%clk 0:00:01]}  Be5+ {[%clk 0:00:15]} 36. g3 {[%clk 0:00:01]}  Kg7 {[%clk 0:00:15]} 0-1


[Site "https://www.chess.com"]

[Event "Titled Tuesday Blitz November 01 Early 2022"]
[White "Rios Escobar, Adan"]
[Black "Fawzy, Adham"]
[WhiteFideId "3403645"]
[BlackFideId "10613129"]
[WhiteElo "2362"]
[BlackElo "2541"]
[Result "1-0"]
[Round "05"]
[TimeControl "180+1"]
[Date "2022.11.02"]
[WhiteClock "0:00:02"]
[BlackClock "0:00:01"]

1. d4 {[%clk 0:02:47]}  d5 {[%clk 0:02:58]} 2. c4 {[%clk 0:02:45]}  c6 {[%clk 0:02:58]} 3. Nf3 {[%clk 0:02:44]}  Nf6 {[%clk 0:02:58]} 4. g3 {[%clk 0:02:42]}  Bf5 {[%clk 0:02:54]} 5. Nc3 {[%clk 0:02:42]}  dxc4 {[%clk 0:02:45]} 6. Bg2 {[%clk 0:02:26]}  Nbd7 {[%clk 0:02:38]} 7. a4 {[%clk 0:02:16]}  e6 {[%clk 0:02:33]} 8. Nd2 {[%clk 0:02:09]}  Be7 {[%clk 0:01:32]} 9. Nxc4 {[%clk 0:02:07]}  O-O {[%clk 0:01:31]} 10. O-O {[%clk 0:02:05]}  a5 {[%clk 0:01:29]} 11. h3 {[%clk 0:01:54]}  Bg6 {[%clk 0:01:28]} 12. e4 {[%clk 0:01:50]}  Bb4 {[%clk 0:00:57]} 13. Qe2 {[%clk 0:01:46]}  Nb6 {[%clk 0:00:47]} 14. Nxb6 {[%clk 0:01:25]}  Qxb6 {[%clk 0:00:48]} 15. Rd1 {[%clk 0:01:25]}  Rad8 {[%clk 0:00:43]} 16. Be3 {[%clk 0:01:18]}  Bxc3 {[%clk 0:00:38]} 17. bxc3 {[%clk 0:01:14]}  Bxe4 {[%clk 0:00:21]} 18. d5 {[%clk 0:01:10]}  Qc7 {[%clk 0:00:17]} 19. dxe6 {[%clk 0:01:10]}  fxe6 {[%clk 0:00:15]} 20. Bf4 {[%clk 0:01:09]}  e5 {[%clk 0:00:14]} 21. Bxe4 {[%clk 0:01:08]}  exf4 {[%clk 0:00:12]} 22. Kg2 {[%clk 0:00:51]}  Rde8 {[%clk 0:00:10]} 23. Qc4+ {[%clk 0:00:49]}  Kh8 {[%clk 0:00:10]} 24. Bf3 {[%clk 0:00:46]}  fxg3 {[%clk 0:00:10]} 25. fxg3 {[%clk 0:00:47]}  Qe5 {[%clk 0:00:09]} 26. Re1 {[%clk 0:00:44]}  Qg5 {[%clk 0:00:09]} 27. Qf4 {[%clk 0:00:31]}  Qc5 {[%clk 0:00:04]} 28. Qd4 {[%clk 0:00:27]}  Qg5 {[%clk 0:00:03]} 29. Qf2 {[%clk 0:00:24]}  Nd5 {[%clk 0:00:02]} 30. Rxe8 {[%clk 0:00:21]}  Rxe8 {[%clk 0:00:03]} 31. Re1 {[%clk 0:00:15]}  Ne3+ {[%clk 0:00:03]} 32. Kh2 {[%clk 0:00:14]}  h6 {[%clk 0:00:04]} 33. h4 {[%clk 0:00:11]}  Qe5 {[%clk 0:00:03]} 34. Kh1 {[%clk 0:00:08]}  Re7 {[%clk 0:00:03]} 35. c4 {[%clk 0:00:08]}  Qd4 {[%clk 0:00:03]} 36. Qe2 {[%clk 0:00:07]}  Qe5 {[%clk 0:00:03]} 37. Qf2 {[%clk 0:00:05]}  Qc5 {[%clk 0:00:02]} 38. Qe2 {[%clk 0:00:05]}  Re5 {[%clk 0:00:02]} 39. Rg1 {[%clk 0:00:04]}  Nxc4 {[%clk 0:00:02]} 40. Qc2 {[%clk 0:00:04]}  Qd4 {[%clk 0:00:02]} 41. Qg6 {[%clk 0:00:05]}  Ne3 {[%clk 0:00:03]} 42. Re1 {[%clk 0:00:04]}  Qd6 {[%clk 0:00:03]} 43. Be4 {[%clk 0:00:04]}  Qxg6 {[%clk 0:00:03]} 44. Bxg6 {[%clk 0:00:05]}  Ng4 {[%clk 0:00:03]} 45. Rb1 {[%clk 0:00:02]}  Nf6 {[%clk 0:00:03]} 46. Rxb7 {[%clk 0:00:01]}  Re1+ {[%clk 0:00:01]} 47. Kh2 {[%clk 0:00:01]}  Re2+ {[%clk 0:00:01]} 48. Kh3 {[%clk 0:00:02]} 1-0


[Site "https://www.chess.com"]

[Event "Titled Tuesday Blitz November 01 Early 2022"]
[White "Rohith Krishna S"]
[Black "Ristic, Nebojsa B"]
[WhiteFideId "46617051"]
[BlackFideId "935468"]
[WhiteElo "2270"]
[BlackElo "2320"]
[Result "1-0"]
[Round "05"]
[TimeControl "180+1"]
[Date "2022.11.02"]
[WhiteClock "0:01:13"]
[BlackClock "0:00:38"]

1. Nf3 {[%clk 0:02:58]}  Nf6 {[%clk 0:02:56]} 2. c4 {[%clk 0:02:57]}  b6 {[%clk 0:02:53]} 3. b3 {[%clk 0:02:53]}  Bb7 {[%clk 0:02:52]} 4. Bb2 {[%clk 0:02:45]}  e6 {[%clk 0:02:50]} 5. d3 {[%clk 0:02:43]}  g6 {[%clk 0:02:49]} 6. Nbd2 {[%clk 0:02:44]}  Bg7 {[%clk 0:02:47]} 7. g3 {[%clk 0:02:44]}  O-O {[%clk 0:02:46]} 8. Bg2 {[%clk 0:02:45]}  d5 {[%clk 0:02:47]} 9. O-O {[%clk 0:02:45]}  Nbd7 {[%clk 0:02:46]} 10. Qc2 {[%clk 0:02:43]}  c5 {[%clk 0:02:45]} 11. Rad1 {[%clk 0:02:41]}  Rc8 {[%clk 0:02:45]} 12. Rfe1 {[%clk 0:02:41]}  Qc7 {[%clk 0:02:45]} 13. e4 {[%clk 0:02:40]}  d4 {[%clk 0:02:41]} 14. a3 {[%clk 0:02:40]}  a5 {[%clk 0:02:39]} 15. b4 {[%clk 0:02:40]}  axb4 {[%clk 0:02:40]} 16. axb4 {[%clk 0:02:40]}  e5 {[%clk 0:02:38]} 17. b5 {[%clk 0:02:37]}  Ra8 {[%clk 0:02:37]} 18. Ra1 {[%clk 0:02:38]}  Nh5 {[%clk 0:02:33]} 19. Qb3 {[%clk 0:02:29]}  f5 {[%clk 0:02:32]} 20. exf5 {[%clk 0:02:13]}  gxf5 {[%clk 0:02:33]} 21. Nh4 {[%clk 0:02:13]}  Bxg2 {[%clk 0:02:30]} 22. Kxg2 {[%clk 0:02:14]}  Rxa1 {[%clk 0:02:26]} 23. Rxa1 {[%clk 0:02:12]}  Qb7+ {[%clk 0:02:25]} 24. Kg1 {[%clk 0:02:12]}  e4 {[%clk 0:02:26]} 25. Qa3 {[%clk 0:02:09]}  e3 {[%clk 0:02:24]} 26. Ndf3 {[%clk 0:02:06]}  f4 {[%clk 0:02:17]} 27. Qa7 {[%clk 0:02:03]}  Qxa7 {[%clk 0:02:03]} 28. Rxa7 {[%clk 0:02:03]}  Ne5 {[%clk 0:02:01]} 29. Nxe5 {[%clk 0:01:56]}  Bxe5 {[%clk 0:02:02]} 30. g4 {[%clk 0:01:52]}  Ng7 {[%clk 0:01:33]} 31. Kg2 {[%clk 0:01:40]}  Ne6 {[%clk 0:01:26]} 32. Re7 {[%clk 0:01:32]}  f3+ {[%clk 0:01:09]} 33. Nxf3 {[%clk 0:01:30]}  Rxf3 {[%clk 0:01:08]} 34. Kxf3 {[%clk 0:01:27]}  Ng5+ {[%clk 0:00:59]} 35. Ke2 {[%clk 0:01:25]}  Bf4 {[%clk 0:00:49]} 36. Bc1 {[%clk 0:01:15]}  Kf8 {[%clk 0:00:39]} 37. Rb7 {[%clk 0:01:14]}  exf2 {[%clk 0:00:38]} 38. Bxf4 {[%clk 0:01:13]}  f1=Q+ {[%clk 0:00:38]} 39. Kxf1 {[%clk 0:01:13]} 1-0


[Site "https://www.chess.com"]